[Event "*** Titled Tuesday Blitz"]
[Site "Chess.com"]
[Date "2021.02.02"]
[Round "1"]
[White "EugeneRougon"]
[Black "korkmaz16"]
[Result "1/2-1/2"]
[WhiteElo "2739"]
[BlackElo "2404"]
[TimeControl "180+1"]
[EndTime "10:08:40 PST"]
[Termination "Game drawn by stalemate"]

1. e4 {[%clk 0:03:00.9]} 1... c5 {[%clk 0:02:54.7]} 2. Nf3 {[%clk 0:03:01]} 2...
e6 {[%clk 0:02:54]} 3. d4 {[%clk 0:03:00.5]} 3... cxd4 {[%clk 0:02:53.7]} 4.
Nxd4 {[%clk 0:03:01.4]} 4... Nf6 {[%clk 0:02:53.8]} 5. Nc3 {[%clk 0:03:01]} 5...
Nc6 {[%clk 0:02:53.7]} 6. Nxc6 {[%clk 0:02:58.1]} 6... bxc6 {[%clk 0:02:53]} 7.
e5 {[%clk 0:02:58.2]} 7... Nd5 {[%clk 0:02:52.8]} 8. Ne4 {[%clk 0:02:58.8]} 8...
Qa5+ {[%clk 0:02:51.4]} 9. c3 {[%clk 0:02:53.9]} 9... Ba6 {[%clk 0:02:40]} 10.
Bd3 {[%clk 0:02:44.4]} 10... Bxd3 {[%clk 0:02:39.3]} 11. Qxd3 {[%clk 0:02:45.3]}
11... Qb5 {[%clk 0:02:39.4]} 12. Qc2 {[%clk 0:02:09.1]} 12... Be7 {[%clk
0:02:24.9]} 13. a4 {[%clk 0:01:43.2]} 13... Qa6 {[%clk 0:02:23.3]} 14. c4 {[%clk
0:01:37.6]} 14... Qa5+ {[%clk 0:01:46.7]} 15. Bd2 {[%clk 0:01:34.9]} 15... Nb4
{[%clk 0:01:46.6]} 16. Qb1 {[%clk 0:01:01.4]} 16... Qxe5 {[%clk 0:01:43.4]} 17.
O-O {[%clk 0:01:01.7]} 17... Rb8 {[%clk 0:01:39.7]} 18. Bc3 {[%clk 0:01:00.2]}
18... Qf5 {[%clk 0:01:27]} 19. Bxg7 {[%clk 0:00:53.7]} 19... Rg8 {[%clk
0:01:26.6]} 20. Bc3 {[%clk 0:00:54.3]} 20... Qg6 {[%clk 0:01:16.2]} 21. g3
{[%clk 0:00:46.5]} 21... f5 {[%clk 0:01:13.7]} 22. Nd2 {[%clk 0:00:44]} 22... h5
{[%clk 0:01:10.3]} 23. Nf3 {[%clk 0:00:41]} 23... h4 {[%clk 0:01:10.4]} 24. Ne5
{[%clk 0:00:40.9]} 24... Qg5 {[%clk 0:01:06.6]} 25. Qd1 {[%clk 0:00:37]} 25...
Rb7 {[%clk 0:01:02.7]} 26. Bd2 {[%clk 0:00:30.8]} 26... f4 {[%clk 0:01:01.6]}
27. Nf3 {[%clk 0:00:22.8]} 27... Qg4 {[%clk 0:00:57.7]} 28. Ne5 {[%clk
0:00:21.9]} 28... Qg5 {[%clk 0:00:57.1]} 29. Nf3 {[%clk 0:00:20.5]} 29... Qf5
{[%clk 0:00:46.2]} 30. Kg2 {[%clk 0:00:17]} 30... Nd3 {[%clk 0:00:38.8]} 31. Bc3
{[%clk 0:00:14.8]} 31... fxg3 {[%clk 0:00:37.1]} 32. fxg3 {[%clk 0:00:15.1]}
32... hxg3 {[%clk 0:00:35.1]} 33. hxg3 {[%clk 0:00:13.2]} 33... Nf4+ {[%clk
0:00:35.2]} 34. Kf2 {[%clk 0:00:13.5]} 34... Nh3+ {[%clk 0:00:33.5]} 35. Kg2
{[%clk 0:00:13.3]} 35... Nf4+ {[%clk 0:00:33.6]} 36. Kf2 {[%clk 0:00:13.5]}
36... Bc5+ {[%clk 0:00:33.3]} 37. Nd4 {[%clk 0:00:11.3]} 37... Nd3+ {[%clk
0:00:29.2]} 38. Ke3 {[%clk 0:00:11.3]} 38... Rxg3+ {[%clk 0:00:26.8]} 39. Rf3
{[%clk 0:00:11.9]} 39... Rxf3+ {[%clk 0:00:25.6]} 40. Qxf3 {[%clk 0:00:12.8]}
40... Bxd4+ {[%clk 0:00:25.7]} 41. Bxd4 {[%clk 0:00:12.9]} 41... Nxb2 {[%clk
0:00:19]} 42. Qxf5 {[%clk 0:00:11.7]} 42... exf5 {[%clk 0:00:19.1]} 43. Kf4
{[%clk 0:00:12.1]} 43... Nxc4 {[%clk 0:00:18.4]} 44. Kxf5 {[%clk 0:00:12.6]}
44... d5 {[%clk 0:00:18.6]} 45. Ke6 {[%clk 0:00:12.6]} 45... Re7+ {[%clk
0:00:18.4]} 46. Kf6 {[%clk 0:00:13.1]} 46... a6 {[%clk 0:00:17.3]} 47. Rb1
{[%clk 0:00:12.8]} 47... Rd7 {[%clk 0:00:15.2]} 48. Ke6 {[%clk 0:00:11.8]} 48...
Re7+ {[%clk 0:00:15.2]} 49. Kf6 {[%clk 0:00:12.1]} 49... Re4 {[%clk 0:00:15.4]}
50. Bc5 {[%clk 0:00:11]} 50... Kd7 {[%clk 0:00:14.7]} 51. Rb7+ {[%clk 0:00:11]}
51... Kc8 {[%clk 0:00:15.1]} 52. Ra7 {[%clk 0:00:11.9]} 52... d4 {[%clk
0:00:14.9]} 53. Kf5 {[%clk 0:00:07.4]} 53... Re2 {[%clk 0:00:13.8]} 54. Bxd4
{[%clk 0:00:07]} 54... Nd6+ {[%clk 0:00:13.7]} 55. Kf6 {[%clk 0:00:06.5]} 55...
Re4 {[%clk 0:00:12.1]} 56. Bc5 {[%clk 0:00:06.2]} 56... Ne8+ {[%clk 0:00:12.4]}
57. Kf5 {[%clk 0:00:06.1]} 57... Rc4 {[%clk 0:00:12.5]} 58. Be3 {[%clk
0:00:04.9]} 58... Nc7 {[%clk 0:00:13.1]} 59. Bb6 {[%clk 0:00:02.6]} 59... Nd5
{[%clk 0:00:12.6]} 60. a5 {[%clk 0:00:02]} 60... Nxb6 {[%clk 0:00:10.9]} 61.
axb6 {[%clk 0:00:02.9]} 61... Rb4 {[%clk 0:00:10.1]} 62. Rc7+ {[%clk 0:00:03.1]}
62... Kb8 {[%clk 0:00:10.3]} 63. Rxc6 {[%clk 0:00:04]} 63... Kb7 {[%clk
0:00:11.2]} 64. Rd6 {[%clk 0:00:04.2]} 64... Rxb6 {[%clk 0:00:11.5]} 65. Rxb6+
{[%clk 0:00:04.8]} 65... Kxb6 {[%clk 0:00:12.4]} 66. Ke4 {[%clk 0:00:05.7]}
66... Kb5 {[%clk 0:00:13.3]} 67. Kd3 {[%clk 0:00:06.5]} 67... Kb4 {[%clk
0:00:14.2]} 68. Kc2 {[%clk 0:00:07.4]} 68... Ka3 {[%clk 0:00:15.1]} 69. Kb1
{[%clk 0:00:08.3]} 69... a5 {[%clk 0:00:14.9]} 70. Ka1 {[%clk 0:00:09.2]} 70...
a4 {[%clk 0:00:15.8]} 71. Kb1 {[%clk 0:00:09.8]} 71... Kb3 {[%clk 0:00:16.7]}
72. Ka1 {[%clk 0:00:10.7]} 72... a3 {[%clk 0:00:17.6]} 73. Kb1 {[%clk
0:00:11.6]} 73... a2+ {[%clk 0:00:17.3]} 74. Ka1 {[%clk 0:00:12.5]} 74... Ka3
{[%clk 0:00:17.8]} 1/2-1/2

[Event "*** Titled Tuesday Blitz"]
[Site "Chess.com"]
[Date "2021.02.02"]
[Round "1"]
[White "eldur16"]
[Black "Sofiia_Hryzlova"]
[Result "0-1"]
[WhiteElo "2521"]
[BlackElo "2231"]
[TimeControl "180+1"]
[EndTime "10:08:50 PST"]
[Termination "Sofiia_Hryzlova won on time"]

1. Nf3 {[%clk 0:02:59.8]} 1... Nf6 {[%clk 0:02:59.2]} 2. g3 {[%clk 0:02:58.9]}
2... d5 {[%clk 0:02:59.3]} 3. Bg2 {[%clk 0:02:58.5]} 3... c6 {[%clk 0:02:58]} 4.
O-O {[%clk 0:02:58.4]} 4... Nbd7 {[%clk 0:02:58.2]} 5. d3 {[%clk 0:02:55.2]}
5... e5 {[%clk 0:02:56.4]} 6. Nbd2 {[%clk 0:02:54.4]} 6... Bd6 {[%clk 0:02:56]}
7. e4 {[%clk 0:02:54]} 7... O-O {[%clk 0:02:54.9]} 8. Re1 {[%clk 0:02:53.3]}
8... Re8 {[%clk 0:02:54.9]} 9. Nh4 {[%clk 0:02:50.3]} 9... g6 {[%clk 0:02:51.6]}
10. Qe2 {[%clk 0:02:45]} 10... Bf8 {[%clk 0:02:50.7]} 11. Nhf3 {[%clk
0:02:39.8]} 11... Bg7 {[%clk 0:02:48.7]} 12. Rb1 {[%clk 0:02:33.6]} 12... a5
{[%clk 0:02:47]} 13. b3 {[%clk 0:02:29.8]} 13... a4 {[%clk 0:02:43.6]} 14. Bb2
{[%clk 0:02:27.7]} 14... d4 {[%clk 0:02:39.9]} 15. Nc4 {[%clk 0:02:23.3]} 15...
Qc7 {[%clk 0:02:36.1]} 16. c3 {[%clk 0:02:20.5]} 16... b5 {[%clk 0:02:34.7]} 17.
Ncd2 {[%clk 0:02:19.3]} 17... c5 {[%clk 0:02:27.2]} 18. Rec1 {[%clk 0:02:16.3]}
18... Qb6 {[%clk 0:02:24.8]} 19. cxd4 {[%clk 0:02:12.4]} 19... exd4 {[%clk
0:02:16]} 20. h3 {[%clk 0:02:07.8]} 20... Bb7 {[%clk 0:02:12.7]} 21. b4 {[%clk
0:02:04.5]} 21... cxb4 {[%clk 0:01:58.5]} 22. Bxd4 {[%clk 0:02:03.5]} 22... Qa5
{[%clk 0:01:53.7]} 23. Qd1 {[%clk 0:01:54]} 23... Rad8 {[%clk 0:01:46.4]} 24.
Nf1 {[%clk 0:01:51.5]} 24... Nb8 {[%clk 0:01:44.3]} 25. Qc2 {[%clk 0:01:43]}
25... Nc6 {[%clk 0:01:41.9]} 26. Ba1 {[%clk 0:01:42.4]} 26... Rc8 {[%clk
0:01:32.6]} 27. Qd1 {[%clk 0:01:35.1]} 27... Red8 {[%clk 0:01:25.8]} 28. Qe2
{[%clk 0:01:32.8]} 28... Qb6 {[%clk 0:01:19.2]} 29. Ne3 {[%clk 0:01:32.1]} 29...
Rd7 {[%clk 0:01:12.6]} 30. Bxf6 {[%clk 0:01:30.7]} 30... Bxf6 {[%clk 0:01:10.2]}
31. Nd5 {[%clk 0:01:30.7]} 31... Qd8 {[%clk 0:01:07.1]} 32. Qe3 {[%clk
0:01:19.7]} 32... Rb8 {[%clk 0:00:50.4]} 33. Rc5 {[%clk 0:01:12.8]} 33... Ba8
{[%clk 0:00:40.7]} 34. Rbc1 {[%clk 0:01:11.9]} 34... Bc3 {[%clk 0:00:29.1]} 35.
a3 {[%clk 0:01:06]} 35... Bb2 {[%clk 0:00:26.2]} 36. Rxc6 {[%clk 0:00:59.9]}
36... Bxc6 {[%clk 0:00:26.2]} 37. Rxc6 {[%clk 0:00:59]} 37... bxa3 {[%clk
0:00:26.4]} 38. Nb4 {[%clk 0:00:53.9]} 38... Qe7 {[%clk 0:00:23.4]} 39. Qd2
{[%clk 0:00:50.3]} 39... Rbd8 {[%clk 0:00:20.8]} 40. Nd5 {[%clk 0:00:47.5]}
40... Rxd5 {[%clk 0:00:19.5]} 41. exd5 {[%clk 0:00:47.3]} 41... Qf8 {[%clk
0:00:15.6]} 42. d4 {[%clk 0:00:40.1]} 42... Rxd5 {[%clk 0:00:15.3]} 43. Qc2
{[%clk 0:00:23.3]} 43... b4 {[%clk 0:00:15.4]} 44. Qxa4 {[%clk 0:00:22.4]} 44...
Qd8 {[%clk 0:00:12.8]} 45. Qc2 {[%clk 0:00:21]} 45... Qe8 {[%clk 0:00:10]} 46.
Rc8 {[%clk 0:00:19]} 46... Rd8 {[%clk 0:00:10.3]} 47. Rxd8 {[%clk 0:00:18.7]}
47... Qxd8 {[%clk 0:00:11.2]} 48. Qb3 {[%clk 0:00:18.5]} 48... Bxd4 {[%clk
0:00:10.8]} 49. Kf1 {[%clk 0:00:13.1]} 49... Bg7 {[%clk 0:00:09]} 50. Ke2 {[%clk
0:00:11.7]} 50... Qe7+ {[%clk 0:00:08.6]} 51. Kd1 {[%clk 0:00:11.7]} 51... Qd6+
{[%clk 0:00:08.2]} 52. Nd2 {[%clk 0:00:11.6]} 52... Bc3 {[%clk 0:00:07.3]} 53.
Qc2 {[%clk 0:00:11]} 53... Qd4 {[%clk 0:00:04.7]} 54. Ke2 {[%clk 0:00:08.4]}
54... Bb2 {[%clk 0:00:04.2]} 55. Qb3 {[%clk 0:00:07.2]} 55... Qe5+ {[%clk
0:00:04.6]} 56. Kd1 {[%clk 0:00:06.3]} 56... Qd4 {[%clk 0:00:05.3]} 57. Kc2
{[%clk 0:00:05.1]} 57... Bc3 {[%clk 0:00:05.5]} 58. Ne4 {[%clk 0:00:03.3]} 58...
Qd7 {[%clk 0:00:03.6]} 59. Qc4 {[%clk 0:00:02.8]} 59... Qe7 {[%clk 0:00:03.8]}
60. Kb3 {[%clk 0:00:02.7]} 60... Bg7 {[%clk 0:00:02.8]} 61. Nc5 {[%clk
0:00:02.1]} 61... Qe1 {[%clk 0:00:02]} 62. Bd5 {[%clk 0:00:01.8]} 62... Qb1+
{[%clk 0:00:01.8]} 63. Ka4 {[%clk 0:00:01.6]} 63... Qd1+ {[%clk 0:00:02]} 64.
Kb5 {[%clk 0:00:01.3]} 64... a2 {[%clk 0:00:01.9]} 65. Bxf7+ {[%clk 0:00:01.1]}
65... Kh8 {[%clk 0:00:02.3]} 66. Ne6 {[%clk 0:00:01]} 66... a1=Q {[%clk
0:00:01.8]} 0-1

[Event "*** Titled Tuesday Blitz"]
[Site "Chess.com"]
[Date "2021.02.02"]
[Round "1"]
[White "Maghalashvili"]
[Black "ukchessbomber"]
[Result "1-0"]
[WhiteElo "2687"]
[BlackElo "2371"]
[TimeControl "180+1"]
[EndTime "10:08:55 PST"]
[Termination "Maghalashvili won by checkmate"]

1. Nf3 {[%clk 0:02:58.9]} 1... Nf6 {[%clk 0:02:59.9]} 2. g3 {[%clk 0:02:58.7]}
2... g6 {[%clk 0:03:00.2]} 3. Bg2 {[%clk 0:02:58.9]} 3... Bg7 {[%clk 0:03:00.7]}
4. c4 {[%clk 0:02:59.1]} 4... d6 {[%clk 0:03:00.7]} 5. O-O {[%clk 0:03:00]} 5...
O-O {[%clk 0:03:01.2]} 6. d4 {[%clk 0:03:00.4]} 6... c6 {[%clk 0:03:01.5]} 7.
Nc3 {[%clk 0:03:01.3]} 7... Nbd7 {[%clk 0:03:01.5]} 8. e4 {[%clk 0:03:01.4]}
8... e5 {[%clk 0:03:01.8]} 9. h3 {[%clk 0:03:02.1]} 9... Re8 {[%clk 0:03:01.4]}
10. Re1 {[%clk 0:03:02.2]} 10... Qc7 {[%clk 0:03:01.5]} 11. Be3 {[%clk
0:03:01.7]} 11... a6 {[%clk 0:03:01.8]} 12. Rc1 {[%clk 0:03:01.5]} 12... Qb8
{[%clk 0:03:01.4]} 13. d5 {[%clk 0:02:23]} 13... c5 {[%clk 0:02:59.7]} 14. a4
{[%clk 0:02:11.7]} 14... a5 {[%clk 0:02:53.4]} 15. Rf1 {[%clk 0:02:08.9]} 15...
Nf8 {[%clk 0:02:51.3]} 16. Ne1 {[%clk 0:02:08.5]} 16... Nh5 {[%clk 0:02:44.7]}
17. Nd3 {[%clk 0:02:07.6]} 17... h6 {[%clk 0:02:42]} 18. Kh2 {[%clk 0:02:04.9]}
18... Nh7 {[%clk 0:02:41.2]} 19. g4 {[%clk 0:01:54.9]} 19... N5f6 {[%clk
0:02:35.3]} 20. f4 {[%clk 0:01:54.5]} 20... exf4 {[%clk 0:02:23.8]} 21. Bxf4
{[%clk 0:01:55.4]} 21... Nd7 {[%clk 0:02:20.2]} 22. Nb5 {[%clk 0:01:54.6]} 22...
Ne5 {[%clk 0:02:17.2]} 23. Nxe5 {[%clk 0:01:51.3]} 23... Bxe5 {[%clk 0:02:17.1]}
24. Bxe5 {[%clk 0:01:51.4]} 24... Rxe5 {[%clk 0:02:18]} 25. Qf3 {[%clk 0:01:52]}
25... f6 {[%clk 0:02:13]} 26. Qf4 {[%clk 0:01:22.9]} 26... Kg7 {[%clk
0:02:10.6]} 27. Rf2 {[%clk 0:01:18.1]} 27... Bd7 {[%clk 0:02:09.2]} 28. Nc3
{[%clk 0:01:17]} 28... Qe8 {[%clk 0:02:05.6]} 29. Rcf1 {[%clk 0:01:16.7]} 29...
Bxa4 {[%clk 0:02:03.3]} 30. Qg3 {[%clk 0:00:58.2]} 30... Bd7 {[%clk 0:01:59]}
31. Ne2 {[%clk 0:00:57.8]} 31... b5 {[%clk 0:01:51.1]} 32. b3 {[%clk 0:00:48.6]}
32... b4 {[%clk 0:01:49.1]} 33. Nf4 {[%clk 0:00:48.3]} 33... Ng5 {[%clk
0:01:43.8]} 34. Nd3 {[%clk 0:00:45.8]} 34... Nxe4 {[%clk 0:01:24.8]} 35. Bxe4
{[%clk 0:00:45]} 35... Rxe4 {[%clk 0:01:25.7]} 36. Qxd6 {[%clk 0:00:40.5]} 36...
Qe7 {[%clk 0:01:25.9]} 37. Qxe7+ {[%clk 0:00:29.6]} 37... Rxe7 {[%clk
0:01:26.8]} 38. Nxc5 {[%clk 0:00:30.5]} 38... a4 {[%clk 0:01:12.6]} 39. bxa4
{[%clk 0:00:26.9]} 39... Ra5 {[%clk 0:01:03.5]} 40. Nxd7 {[%clk 0:00:16.9]}
40... Rxd7 {[%clk 0:01:03.7]} 41. Rxf6 {[%clk 0:00:17.2]} 41... Rxa4 {[%clk
0:00:48]} 42. Rb6 {[%clk 0:00:16.8]} 42... b3 {[%clk 0:00:44.5]} 43. Rff6 {[%clk
0:00:14.7]} 43... Rxc4 {[%clk 0:00:29]} 44. Rxg6+ {[%clk 0:00:14.4]} 44... Kf7
{[%clk 0:00:29.6]} 45. Rxh6 {[%clk 0:00:13.8]} 45... Rc2+ {[%clk 0:00:20.7]} 46.
Kg3 {[%clk 0:00:12.7]} 46... Rc3+ {[%clk 0:00:21]} 47. Kh4 {[%clk 0:00:12.4]}
47... Rxd5 {[%clk 0:00:20.9]} 48. Rb7+ {[%clk 0:00:12.3]} 48... Kg8 {[%clk
0:00:20.3]} 49. Ra6 {[%clk 0:00:11.9]} 49... Rd8 {[%clk 0:00:18.6]} 50. Ra4
{[%clk 0:00:08.3]} 50... Re3 {[%clk 0:00:16.9]} 51. Rc4 {[%clk 0:00:06.7]} 51...
Rf8 {[%clk 0:00:12]} 52. g5 {[%clk 0:00:06.6]} 52... Rf7 {[%clk 0:00:10]} 53.
Rxf7 {[%clk 0:00:05.9]} 53... Kxf7 {[%clk 0:00:10.9]} 54. Kg4 {[%clk 0:00:06.4]}
54... b2 {[%clk 0:00:09]} 55. Rc7+ {[%clk 0:00:06.6]} 55... Kg6 {[%clk
0:00:06.9]} 56. Rc6+ {[%clk 0:00:07.5]} 56... Kf7 {[%clk 0:00:06.7]} 57. Rb6
{[%clk 0:00:07.8]} 57... Re2 {[%clk 0:00:07.1]} 58. h4 {[%clk 0:00:08.3]} 58...
Rg2+ {[%clk 0:00:06.3]} 59. Kh5 {[%clk 0:00:08.6]} 59... Kg7 {[%clk 0:00:06.4]}
60. Rb7+ {[%clk 0:00:08.8]} 60... Kf8 {[%clk 0:00:06.8]} 61. Kg6 {[%clk
0:00:09.7]} 61... Ke8 {[%clk 0:00:06.2]} 62. h5 {[%clk 0:00:09.9]} 62... Kd8
{[%clk 0:00:07.1]} 63. h6 {[%clk 0:00:10.2]} 63... Kc8 {[%clk 0:00:08]} 64. Rb3
{[%clk 0:00:10.2]} 64... Rh2 {[%clk 0:00:08.3]} 65. Kh7 {[%clk 0:00:10]} 65...
Kd7 {[%clk 0:00:09.2]} 66. g6 {[%clk 0:00:10.3]} 66... Ke6 {[%clk 0:00:09.7]}
67. g7 {[%clk 0:00:10.8]} 67... Rh3 {[%clk 0:00:09.2]} 68. Rxb2 {[%clk 0:00:10]}
68... Rb3 {[%clk 0:00:10.1]} 69. Rxb3 {[%clk 0:00:09.8]} 69... Kf5 {[%clk
0:00:08.9]} 70. g8=Q {[%clk 0:00:09.7]} 70... Kf4 {[%clk 0:00:08.8]} 71. Qg6
{[%clk 0:00:09.2]} 71... Ke5 {[%clk 0:00:08.4]} 72. Re3+ {[%clk 0:00:09.3]}
72... Kd4 {[%clk 0:00:09.3]} 73. Qe4+ {[%clk 0:00:09.5]} 73... Kc5 {[%clk
0:00:09.9]} 74. Rc3+ {[%clk 0:00:10]} 74... Kd6 {[%clk 0:00:10.8]} 75. Rc6+
{[%clk 0:00:10]} 75... Kd7 {[%clk 0:00:10.7]} 76. Qe6+ {[%clk 0:00:10.9]} 76...
Kd8 {[%clk 0:00:11.6]} 77. Rc8# {[%clk 0:00:11.8]} 1-0

[Event "*** Titled Tuesday Blitz"]
[Site "Chess.com"]
[Date "2021.02.02"]
[Round "1"]
[White "anon132639"]
[Black "SCIM"]
[Result "1/2-1/2"]
[WhiteElo "2799"]
[BlackElo "2424"]
[TimeControl "180+1"]
[EndTime "10:09:01 PST"]
[Termination "Game drawn - insufficient material"]

1. Nf3 {[%clk 0:02:52]} 1... Nf6 {[%clk 0:02:59.6]} 2. c4 {[%clk 0:02:52.3]}
2... g6 {[%clk 0:02:59.7]} 3. d4 {[%clk 0:02:52.4]} 3... Bg7 {[%clk 0:02:57.9]}
4. Nc3 {[%clk 0:02:53.3]} 4... d5 {[%clk 0:02:58.3]} 5. e3 {[%clk 0:02:53.4]}
5... O-O {[%clk 0:02:57.3]} 6. cxd5 {[%clk 0:02:52.6]} 6... Nxd5 {[%clk
0:02:58.2]} 7. Bc4 {[%clk 0:02:53.4]} 7... Nxc3 {[%clk 0:02:56.1]} 8. bxc3
{[%clk 0:02:54.3]} 8... c5 {[%clk 0:02:55.4]} 9. O-O {[%clk 0:02:54.5]} 9... Nc6
{[%clk 0:02:48.8]} 10. a4 {[%clk 0:02:53.3]} 10... Na5 {[%clk 0:02:44.2]} 11.
Be2 {[%clk 0:02:52.6]} 11... b6 {[%clk 0:02:40.5]} 12. Ba3 {[%clk 0:02:51.4]}
12... Qc7 {[%clk 0:02:37.6]} 13. Nd2 {[%clk 0:02:45.8]} 13... Bb7 {[%clk
0:02:34.6]} 14. Nb3 {[%clk 0:02:45.9]} 14... Nxb3 {[%clk 0:02:21]} 15. Qxb3
{[%clk 0:02:46.8]} 15... Rfd8 {[%clk 0:02:18.8]} 16. a5 {[%clk 0:02:46]} 16...
cxd4 {[%clk 0:02:06.6]} 17. cxd4 {[%clk 0:02:43.1]} 17... e5 {[%clk 0:01:49.7]}
18. Rfc1 {[%clk 0:02:41.1]} 18... Qd7 {[%clk 0:01:44.2]} 19. dxe5 {[%clk
0:02:27]} 19... Bxe5 {[%clk 0:01:45.1]} 20. Bb2 {[%clk 0:02:27.3]} 20... Bxb2
{[%clk 0:01:26.9]} 21. Qxb2 {[%clk 0:02:28.2]} 21... bxa5 {[%clk 0:01:26.8]} 22.
Rxa5 {[%clk 0:02:26]} 22... Qd2 {[%clk 0:01:15.7]} 23. Qxd2 {[%clk 0:02:22.5]}
23... Rxd2 {[%clk 0:01:16.6]} 24. Bf1 {[%clk 0:02:23.4]} 24... Bd5 {[%clk
0:01:03.5]} 25. Rca1 {[%clk 0:02:23.4]} 25... Be6 {[%clk 0:00:59]} 26. h4 {[%clk
0:02:04.8]} 26... h5 {[%clk 0:00:57.3]} 27. Rxa7 {[%clk 0:02:01.9]} 27... Rxa7
{[%clk 0:00:56.6]} 28. Rxa7 {[%clk 0:02:02.8]} 28... Rd1 {[%clk 0:00:56.7]} 29.
Ra4 {[%clk 0:02:02]} 29... Kg7 {[%clk 0:00:43.2]} 30. f3 {[%clk 0:02:02.3]}
30... Rb1 {[%clk 0:00:34.3]} 31. Kf2 {[%clk 0:02:01.5]} 31... Kf6 {[%clk
0:00:30.4]} 32. Bd3 {[%clk 0:01:58.3]} 32... Rb2+ {[%clk 0:00:30.1]} 33. Kg3
{[%clk 0:01:58.6]} 33... Rd2 {[%clk 0:00:30]} 34. Be4 {[%clk 0:01:42.2]} 34...
Rb2 {[%clk 0:00:29.7]} 35. Ra6 {[%clk 0:01:36.1]} 35... Rd2 {[%clk 0:00:25.7]}
36. Rb6 {[%clk 0:01:32]} 36... Re2 {[%clk 0:00:24.8]} 37. Kf4 {[%clk 0:00:57.4]}
37... Rxg2 {[%clk 0:00:24.6]} 38. Bd5 {[%clk 0:00:58.1]} 38... Rh2 {[%clk
0:00:24.8]} 39. Bxe6 {[%clk 0:00:57.5]} 39... fxe6 {[%clk 0:00:25.1]} 40. Kg3
{[%clk 0:00:56.7]} 40... Rh1 {[%clk 0:00:25.1]} 41. e4 {[%clk 0:00:56.2]} 41...
Rg1+ {[%clk 0:00:25.6]} 42. Kf4 {[%clk 0:00:56.3]} 42... Rh1 {[%clk 0:00:26.1]}
43. e5+ {[%clk 0:00:54.8]} 43... Kg7 {[%clk 0:00:26]} 44. Rxe6 {[%clk
0:00:53.5]} 44... Kh6 {[%clk 0:00:22.3]} 45. Kg3 {[%clk 0:00:39.2]} 45... Rg1+
{[%clk 0:00:22.1]} 46. Kf2 {[%clk 0:00:39.7]} 46... Rh1 {[%clk 0:00:21.8]} 47.
Kg3 {[%clk 0:00:40.3]} 47... Rg1+ {[%clk 0:00:22]} 48. Kh2 {[%clk 0:00:40.1]}
48... Re1 {[%clk 0:00:20.8]} 49. f4 {[%clk 0:00:39.1]} 49... Kg7 {[%clk
0:00:16.5]} 50. Re7+ {[%clk 0:00:39.4]} 50... Kf8 {[%clk 0:00:15.9]} 51. Rd7
{[%clk 0:00:38.1]} 51... Re3 {[%clk 0:00:16.3]} 52. Kg2 {[%clk 0:00:38.1]} 52...
Kg8 {[%clk 0:00:14.6]} 53. Kf2 {[%clk 0:00:28.3]} 53... Rh3 {[%clk 0:00:13.7]}
54. e6 {[%clk 0:00:25.5]} 54... Kf8 {[%clk 0:00:12.7]} 55. Rf7+ {[%clk
0:00:24.7]} 55... Ke8 {[%clk 0:00:12.6]} 56. Rf6 {[%clk 0:00:24.1]} 56... Rxh4
{[%clk 0:00:12.8]} 57. Kf3 {[%clk 0:00:24.2]} 57... Rg4 {[%clk 0:00:12.7]} 58.
Ke4 {[%clk 0:00:22.2]} 58... g5 {[%clk 0:00:10.1]} 59. Ke5 {[%clk 0:00:18.5]}
59... Rxf4 {[%clk 0:00:11]} 60. Rh6 {[%clk 0:00:19.2]} 60... Rf1 {[%clk
0:00:08.6]} 61. Rxh5 {[%clk 0:00:19]} 61... g4 {[%clk 0:00:08.8]} 62. Rg5 {[%clk
0:00:17.3]} 62... Re1+ {[%clk 0:00:08.7]} 63. Kf6 {[%clk 0:00:17.8]} 63... Rf1+
{[%clk 0:00:08.9]} 64. Kg6 {[%clk 0:00:15.7]} 64... Ke7 {[%clk 0:00:08.5]} 65.
Rxg4 {[%clk 0:00:16.1]} 65... Kxe6 {[%clk 0:00:08.5]} 66. Re4+ {[%clk 0:00:17]}
66... Kd5 {[%clk 0:00:08.9]} 67. Re2 {[%clk 0:00:17.9]} 67... Rd1 {[%clk
0:00:08.9]} 68. Kf5 {[%clk 0:00:18.1]} 68... Rd4 {[%clk 0:00:09.6]} 69. Re5+
{[%clk 0:00:18.5]} 69... Kc4 {[%clk 0:00:09.1]} 70. Ke6 {[%clk 0:00:19.4]} 70...
Kd3 {[%clk 0:00:08.1]} 71. Rh5 {[%clk 0:00:19.3]} 71... Re4+ {[%clk 0:00:08.1]}
72. Kf5 {[%clk 0:00:19.8]} 72... Rd4 {[%clk 0:00:08.5]} 73. Rh3+ {[%clk
0:00:20.4]} 73... Kc4 {[%clk 0:00:08.5]} 74. Ke5 {[%clk 0:00:21.3]} 74... Rd5+
{[%clk 0:00:08.9]} 75. Ke6 {[%clk 0:00:22.1]} 75... Rd4 {[%clk 0:00:09.8]} 76.
Rh1 {[%clk 0:00:22.7]} 76... Rd3 {[%clk 0:00:09.8]} 77. Ke5 {[%clk 0:00:23.2]}
77... Kc3 {[%clk 0:00:10]} 78. Rc1+ {[%clk 0:00:23.5]} 78... Kd2 {[%clk
0:00:09.9]} 79. Ra1 {[%clk 0:00:24.3]} 79... Re3+ {[%clk 0:00:10.2]} 80. Kf4
{[%clk 0:00:25]} 80... Rd3 {[%clk 0:00:10.5]} 81. Ke4 {[%clk 0:00:24.7]} 81...
Re3+ {[%clk 0:00:09.9]} 82. Kd4 {[%clk 0:00:25.4]} 82... Rd3+ {[%clk 0:00:10.8]}
83. Kc4 {[%clk 0:00:26.1]} 83... Rc3+ {[%clk 0:00:11]} 84. Kb4 {[%clk
0:00:26.5]} 84... Rg3 {[%clk 0:00:11.1]} 85. Ra3 {[%clk 0:00:26.7]} 85... Rxa3
{[%clk 0:00:10]} 86. Kxa3 {[%clk 0:00:27.3]} 1/2-1/2